bitfinex-derivatives/quotes_SOLF0:USTF0_20250907
["timestamp","ask_amount","ask_price","bid_price","bid_amount"]
[1757203593246,7.45,200.88,200.84,7.59]
[1757203593946,65.16157202,200.89,200.84,7.59]
[1757203594250,7.45,200.88,200.84,7.59]
[1757203594546,65.16157202,200.89,200.84,7.59]
[1757203594750,7.45,200.88,200.84,7.59]
[1757203594950,56.82689003,200.89,200.85,4.54685958]
[1757203595149,7.45,200.88,200.84,7.59]
[1757203595350,56.82689003,200.89,200.84,7.59]
[1757203595850,7.45,200.88,200.84,7.59]
[1757203596149,56.82689003,200.89,200.84,7.59]
[1757203596645,7.45,200.88,200.84,7.59]
[1757203596854,7.45,200.88,200.81,7.59]
[1757203597045,7.45,200.88,200.83,7.59]
[1757203597345,0.86689003,200.89,200.85,7.59]
[1757203597549,8.33468199,200.91,200.86,4.54647677]
[1757203597750,8.31670652,200.92,200.88,7.59]
[1757203597944,8.31670652,200.92,200.8,7.59]
[1757203598145,8.31670652,200.92,200.82,7.59]
[1757203598345,8.31670652,200.92,200.84,7.59]
[1757203598650,8.31670652,200.92,200.86,7.59]
[1757203598847,8.31670652,200.92,200.88,7.59]
[1757203599048,8.31670652,200.92,200.85,7.59]
[1757203599239,8.31670652,200.92,200.86,9.25609594]
[1757203599441,8.31670652,200.92,200.88,7.59]
[1757203599750,8.31670652,200.92,200.85,7.59]
[1757203599946,8.31670652,200.92,200.86,9.25606395]
[1757203600141,8.31670652,200.92,200.88,7.59]
[1757203600347,8.31670652,200.92,200.86,7.59]
[1757203600647,8.31670652,200.92,200.87,4.54174195]
[1757203600849,8.31670652,200.92,200.89,7.59]
[1757203604543,0.86670652,200.92,200.83,4.4799]
[1757203604849,7.45,200.91,200.84,12.12907551]
[1757203605048,7.45,200.91,200.85,4.53907551]
[1757203605249,7.45,200.91,200.86,4.53907551]
[1757203605550,7.45,200.91,200.84,7.59]
[1757203605751,7.45,200.91,200.85,4.53942438]
[1757203606051,7.45,200.91,200.86,4.53942438]
[1757203606248,7.45,200.91,200.84,7.59]
[1757203606542,7.45,200.91,200.85,4.53953337]
[1757203606746,0.86670652,200.92,200.86,4.53953337]
[1757203606951,7.45,200.91,200.84,7.59]
[1757203607248,7.45,200.91,200.85,4.53953381]
[1757203607448,7.45,200.91,200.86,12.12953381]
[1757203607650,7.45,200.91,200.82,7.59]
[1757203607951,7.45,200.91,200.84,7.59]
[1757203608150,7.45,200.91,200.85,4.53969698]
[1757203608445,0.86670652,200.92,200.86,4.53969698]
[1757203608650,7.45,200.91,200.82,7.59]
[1757203608852,7.45,200.91,200.84,7.59]
[1757203609043,7.45,200.91,200.85,4.53991674]
[1757203609246,0.86670652,200.92,200.86,4.53991674]
[1757203609442,7.44,200.91,200.85,7.44]
[1757203609653,7.44,200.91,200.86,4.53998188]
[1757203609854,7.44,200.91,200.82,7.44]
[1757203610052,7.44,200.91,200.84,7.44]
[1757203610256,7.44,200.91,200.85,4.53998171]
[1757203610547,0.86670652,200.92,200.86,4.53998171]
[1757203610754,7.44,200.91,200.82,7.44]
[1757203611055,7.44,200.91,200.84,7.44]
[1757203611351,7.44,200.91,200.85,4.54016173]
[1757203611552,0.86670652,200.92,200.86,4.54016173]
[1757203611751,7.44,200.91,200.85,7.44]
[1757203611951,7.44,200.91,200.86,4.54033687]
[1757203612252,7.44,200.91,200.85,7.44]
[1757203612450,7.44,200.91,200.86,4.54057749]
[1757203612650,7.44,200.91,200.85,7.44]
[1757203612853,7.44,200.91,200.86,4.54057749]
[1757203613052,7.44,200.91,200.83,7.44]
[1757203613254,7.44,200.91,200.85,7.44]
[1757203613455,0.86670652,200.92,200.86,4.52006235]
[1757203613655,7.44,200.91,200.83,7.44]
[1757203613855,7.44,200.91,200.85,7.44]
[1757203614055,7.44,200.91,200.86,4.52006235]
[1757203614357,7.44,200.91,200.85,7.44]
[1757203614552,0.86670652,200.92,200.86,4.52031815]
[1757203614756,7.44,200.91,200.83,7.44]
[1757203614956,7.44,200.91,200.85,7.44]
[1757203615161,7.44,200.91,200.86,4.52031815]
[1757203615358,7.44,200.91,200.85,7.44]
[1757203615559,7.44,200.91,200.86,4.52062926]
[1757203615860,7.44,200.91,200.83,7.44]
[1757203616064,7.44,200.91,200.85,7.44]
[1757203616255,0.86670652,200.92,200.86,4.52062926]
[1757203616456,7.44,200.91,200.83,7.44]
[1757203616655,7.44,200.91,200.84,16.64928761]
[1757203616857,7.44,200.91,200.85,9.20928761]
[1757203617059,7.44,200.91,200.86,4.5209051]
[1757203617362,7.44,200.91,200.83,7.44]
[1757203617661,7.44,200.91,200.85,7.44]
[1757203617860,0.86670652,200.92,200.86,4.52092786]
[1757203618062,7.44,200.91,200.83,7.44]
[1757203618257,7.44,200.91,200.85,7.44]
[1757203618556,7.44,200.91,200.86,4.52097388]
[1757203618755,7.44,200.91,200.85,7.44]
[1757203618957,0.86670652,200.92,200.86,11.96097388]
[1757203619159,7.44,200.91,200.83,7.44]
[1757203619357,7.44,200.91,200.85,7.44]
[1757203619557,7.44,200.91,200.86,4.5210457]
[1757203619757,7.44,200.91,200.85,7.44]
[1757203619961,7.44,200.91,200.86,4.5210457]
[1757203620163,7.44,200.91,200.85,7.44]
[1757203620454,0.86670652,200.92,200.86,4.52107837]
[1757203620656,7.44,200.91,200.83,7.44]
[1757203620862,7.44,200.91,200.84,9.20964206]
[1757203621164,7.44,200.91,200.85,9.20964206]
[1757203621358,7.44,200.91,200.86,4.52107909]
[1757203621568,7.44,200.91,200.83,7.44]
[1757203621762,7.44,200.91,200.84,9.20987335]
[1757203621961,7.44,200.91,200.85,16.64987335]
[1757203622162,7.44,200.91,200.86,4.52119264]
[1757203622361,7.44,200.91,200.85,7.44]
[1757203622559,7.44,200.91,200.86,4.52124547]
[1757203622764,7.44,200.91,200.82,7.44]
[1757203622964,7.44,200.91,200.84,7.44]
[1757203623260,0.86670652,200.92,200.85,9.20998097]
[1757203623466,0.86670652,200.92,200.86,4.52124547]
[1757203623767,7.44,200.91,200.83,7.44]
[1757203623967,7.44,200.91,200.85,7.44]
[1757203624168,7.44,200.91,200.86,11.9613146]
[1757203624364,7.44,200.91,200.83,7.44]
[1757203624566,7.44,200.91,200.85,7.44]
[1757203624766,7.44,200.91,200.86,4.52140373]
[1757203624964,7.44,200.91,200.85,7.44]
[1757203625267,7.44,200.91,200.86,4.52140409]
[1757203625461,7.44,200.91,200.83,7.44]
[1757203625665,7.44,200.91,200.85,7.44]
[1757203625865,7.44,200.91,200.86,4.52161557]
[1757203626064,7.44,200.91,200.85,7.44]
[1757203626265,7.44,200.91,200.86,4.52175957]
[1757203626570,7.44,200.91,200.83,7.44]
[1757203626770,7.44,200.91,200.82,4.48]
[1757203626771,7.44,200.91,200.85,7.44]
[1757203627067,0.86670652,200.92,200.86,4.52185944]
[1757203627264,0.86670652,200.92,200.87,11.96185944]
[1757203627467,0.86670652,200.92,200.87,7.44]
[1757203627659,7.44,200.91,200.87,7.44]
[1757203627863,0.86670652,200.92,200.87,7.44]
[1757203628365,7.44,200.91,200.87,7.44]
[1757203628570,7.44,200.91,200.81,7.44]
[1757203628770,7.44,200.91,200.83,7.44]
[1757203628968,7.44,200.91,200.84,4.52267915]
[1757203629168,7.44,200.91,200.85,4.52267915]
[1757203629366,7.44,200.91,200.83,7.44]
[1757203629570,7.44,200.91,200.84,4.52309627]
[1757203629770,7.44,200.91,200.85,4.52309627]
[1757203629968,7.44,200.91,200.83,7.44]
[1757203630168,7.44,200.91,200.84,4.52311614]
[1757203630368,15.77468199,200.91,200.85,4.52311614]
[1757203630568,15.77468199,200.91,200.83,7.44]
[1757203630770,15.77468199,200.91,200.84,4.52338437]
[1757203631067,15.77468199,200.91,200.85,4.52338437]
[1757203631269,15.77468199,200.91,200.83,7.44]
[1757203631472,15.77468199,200.91,200.84,4.52366509]
[1757203631673,15.77468199,200.91,200.85,4.52366509]
[1757203631872,15.77468199,200.91,200.83,7.44]
[1757203632068,15.77468199,200.91,200.84,4.52366509]
[1757203632270,15.77468199,200.91,200.85,11.96366509]
[1757203632470,15.77468199,200.91,200.85,7.44]
[1757203633574,7.44,200.91,200.85,7.44]
[1757203634076,7.44,200.91,200.86,4.52414494]
[1757203634274,7.44,200.91,200.81,7.44]
[1757203634476,15.77468199,200.91,200.83,7.44]
[1757203634675,15.77468199,200.91,200.84,4.52451253]
[1757203634974,15.77468199,200.91,200.85,4.52451253]
[1757203635175,15.77468199,200.91,200.83,7.44]
[1757203635376,15.77468199,200.91,200.84,9.21749523]
[1757203635570,15.77468199,200.91,200.85,4.52492848]
[1757203635870,15.77468199,200.91,200.83,7.44]
[1757203636070,15.77468199,200.91,200.84,9.21758842]
[1757203636267,15.77468199,200.91,200.85,4.52497423]
[1757203636466,15.77468199,200.91,200.83,7.44]
[1757203636670,15.77468199,200.91,200.84,9.21832423]
[1757203636877,15.77468199,200.91,200.85,4.52533544]
[1757203637077,15.77468199,200.91,200.83,7.44]
[1757203637277,15.77468199,200.91,200.84,9.21906271]
[1757203637473,15.77468199,200.91,200.85,11.96569797]
[1757203637677,15.77468199,200.91,200.85,7.44]
[1757203638274,15.77468199,200.91,200.86,4.52612036]
[1757203638474,15.77468199,200.91,200.85,7.44]
[1757203638668,15.77468199,200.91,200.86,4.52612582]
[1757203638873,15.77468199,200.91,200.85,7.44]
[1757203639179,8.33468199,200.91,200.86,12.34612582]
[1757203639378,8.33468199,200.91,200.86,7.82]
[1757203639576,8.11,200.9,200.86,7.82]
[1757203639782,8.33468199,200.91,200.86,7.82]
[1757203639967,8.11,200.9,200.86,7.82]
[1757203640169,8.33468199,200.91,200.86,7.82]
[1757203640573,8.11,200.9,200.86,7.82]
[1757203641774,8.33468199,200.91,200.86,7.82]
[1757203642174,8.11,200.9,200.86,7.82]
[1757203642579,8.33468199,200.91,200.86,7.82]
[1757203642978,8.11,200.9,200.86,7.82]
[1757203643183,8.33468199,200.91,200.86,7.82]
[1757203644481,8.11,200.9,200.86,7.82]
[1757203644682,8.33468199,200.91,200.86,7.82]
[1757203644882,8.11,200.9,200.86,7.82]
[1757203645081,8.11,200.9,200.8,4.4806]
[1757203645082,9.20138851,200.92,200.87,4.52873203]
[1757203645282,8.11,200.91,200.87,7.82]
[1757203645484,8.33468199,200.91,200.87,7.82]
[1757203645881,8.11,200.9,200.87,7.82]
[1757203646086,8.33468199,200.91,200.87,7.82]
[1757203646286,8.11,200.9,200.87,7.82]
[1757203646486,8.33468199,200.91,200.87,7.82]
[1757203646685,8.11,200.9,200.87,7.82]
[1757203647488,8.33468199,200.91,200.87,7.82]
[1757203648387,8.11,200.9,200.87,7.82]
[1757203648580,8.33468199,200.91,200.87,7.82]
[1757203649377,8.11,200.9,200.87,7.82]
[1757203650187,8.33468199,200.91,200.87,7.82]
[1757203651784,8.11,200.9,200.87,7.82]
[1757203652389,8.33468199,200.91,200.87,7.82]
[1757203652791,8.11,200.9,200.87,7.82]
[1757203653392,8.33468199,200.91,200.87,7.82]
[1757203653690,8.11,200.9,200.87,7.82]
[1757203654290,8.33468199,200.91,200.87,7.82]
[1757203654589,8.11,200.9,200.87,7.82]
[1757203654889,8.33468199,200.91,200.87,7.82]
[1757203655190,8.11,200.9,200.87,7.82]
[1757203655688,8.33468199,200.91,200.87,7.82]
[1757203656082,8.11,200.9,200.87,7.82]
[1757203656479,8.33468199,200.91,200.87,7.82]
[1757203656685,16.44468199,200.9,200.81,7.82]
[1757203656882,16.44468199,200.9,200.8,4.4806]
[1757203656883,16.44468199,200.9,200.83,7.82]
[1757203657082,16.44468199,200.9,200.85,7.82]
[1757203657288,8.11,200.89,200.86,12.35082823]
[1757203657489,8.11,200.89,200.86,7.82]
[1757203658090,8.33468199,200.9,200.81,7.82]
[1757203658291,8.33468199,200.9,200.83,7.82]
[1757203658592,8.33468199,200.9,200.85,7.82]
[1757203658782,8.33468199,200.9,200.86,4.53066]
[1757203658987,16.44468199,200.9,200.81,7.82]
[1757203659187,16.44468199,200.9,200.83,7.82]
[1757203659490,8.33468199,200.9,200.84,9.23775977]
[1757203659693,8.33468199,200.9,200.86,7.82]
[1757203659694,8.11,200.89,200.86,7.82]
[1757203661592,8.11,200.89,200.87,4.53071058]
[1757203661795,8.11,200.89,200.81,7.82]
[1757203661996,8.11,200.89,200.83,7.82]
[1757203662296,8.11,200.89,200.85,7.82]
[1757203662593,8.33468199,200.91,200.86,17.05790743]
[1757203662794,8.11,200.9,200.87,4.53071058]
[1757203663094,8.33468199,200.91,200.86,7.82]
[1757203663295,8.11,200.9,200.87,4.53091251]
[1757203663489,8.11,200.9,200.86,7.82]
[1757203663686,8.33468199,200.91,200.87,4.53094771]
[1757203663897,8.33468199,200.91,200.86,7.82]
[1757203664094,8.11,200.9,200.87,4.53094771]
[1757203664293,8.33468199,200.91,200.86,7.82]
[1757203664494,8.11,200.9,200.87,4.53107558]
[1757203664693,8.11,200.9,200.86,7.82]
[1757203664893,8.11,200.9,200.87,4.53107558]
[1757203665094,16.44468199,200.91,200.81,7.82]
[1757203665295,16.44468199,200.91,200.83,7.43271827]
[1757203665496,16.44468199,200.91,200.84,9.2386515]
[1757203665695,16.44468199,200.91,200.85,9.2386515]
[1757203665897,8.11,200.9,200.86,9.2386515]
[1757203666091,8.33468199,200.91,200.87,4.53107551]
[1757203666299,16.44468199,200.91,200.8,4.4806]
[1757203666600,16.44468199,200.91,200.81,13.18075746]
[1757203666797,16.44468199,200.91,200.82,13.18075746]
[1757203667096,16.44468199,200.91,200.83,9.23877791]
[1757203667293,16.44468199,200.91,200.85,7.82]
[1757203667491,8.11,200.9,200.87,7.82]
[1757203667899,8.33468199,200.91,200.87,7.82]
[1757203668194,8.11,200.9,200.87,7.82]
[1757203668400,8.33468199,200.91,200.87,7.82]
[1757203668601,8.11,200.9,200.87,7.82]
[1757203668902,8.33468199,200.91,200.87,7.82]
[1757203669093,8.18,200.89,200.87,4.70674277]
[1757203670099,8.18,200.89,200.8,4.4806]
[1757203670300,8.18,200.89,200.81,13.19195593]
[1757203670502,8.18,200.89,200.82,9.24951143]
[1757203670703,8.18,200.89,200.83,9.24951143]
[1757203670904,16.51468199,200.89,200.84,4.53171365]
[1757203671105,16.51468199,200.89,200.85,4.53171365]
[1757203671301,16.51468199,200.89,200.81,4.9]
[1757203671605,16.51468199,200.89,200.82,9.24975673]
[1757203671804,16.51468199,200.89,200.83,9.24975673]
[1757203672104,16.51468199,200.89,200.81,4.9]
[1757203672105,16.51468199,200.89,200.84,4.53182823]
[1757203672307,16.51468199,200.89,200.85,4.53182823]
[1757203672604,16.51468199,200.89,200.81,4.9]
[1757203672804,16.51468199,200.89,200.82,9.24929836]
[1757203673006,16.51468199,200.89,200.83,9.24929836]
[1757203673205,16.51468199,200.89,200.84,4.53160365]
[1757203673406,16.51468199,200.89,200.85,4.53160365]
[1757203673607,16.51468199,200.89,200.81,4.9]
[1757203673908,16.51468199,200.89,200.82,9.25255512]
[1757203674204,16.51468199,200.89,200.83,9.25255512]
[1757203674404,16.51468199,200.89,200.84,4.53526388]
[1757203674604,16.51468199,200.89,200.85,4.53526388]
[1757203674804,16.51468199,200.89,200.81,4.9]
[1757203675007,8.33468199,200.86,200.82,4.53491781]
[1757203675205,8.33468199,200.86,200.83,4.53531058]
[1757203675408,8.18,200.86,200.79,4.9]
[1757203675702,8.18,200.86,200.8,9.24965447]
[1757203675902,8.18,200.86,200.81,9.24965447]
[1757203676207,8.18,200.86,200.82,4.53383357]
[1757203676398,8.18,200.86,200.8,4.9]
[1757203676801,8.33468199,200.87,200.81,4.53268676]
[1757203676999,8.33468199,200.87,200.82,4.53268676]
[1757203677203,8.18,200.86,200.8,4.9]
[1757203677500,8.18,200.86,200.81,4.53268676]
[1757203677699,8.18,200.86,200.82,4.53268676]
[1757203678010,8.18,200.86,200.8,4.9]
[1757203678304,8.18,200.86,200.81,4.531733]
[1757203678505,8.33468199,200.87,200.82,4.531733]
[1757203678707,8.18,200.86,200.8,4.9]
[1757203679010,8.33468199,200.87,200.81,4.53091182]
[1757203679209,8.18,200.86,200.82,4.53091182]
[1757203679409,8.18,200.86,200.8,4.9]
[1757203679610,8.33468199,200.87,200.81,4.53021034]
[1757203679811,8.33468199,200.87,200.82,4.53021034]
[1757203680008,8.18,200.86,200.8,4.9]
[1757203680209,8.18,200.86,200.81,4.53021034]
[1757203680403,8.18,200.86,200.82,4.53021034]
[1757203680610,8.18,200.86,200.8,4.9]
[1757203680806,8.18,200.86,200.81,4.53009687]
[1757203681111,8.33468199,200.87,200.82,9.43009687]
[1757203681312,8.18,200.87,200.82,4.9]
[1757203684610,8.33468199,200.88,200.82,4.9]
[1757203684812,8.18,200.87,200.82,4.9]
[1757203688314,8.18,200.87,200.77,4.9]
[1757203688614,8.18,200.87,200.79,4.9]
[1757203688810,8.18,200.87,200.81,4.9]
[1757203689219,8.18,200.88,200.82,4.52660004]
[1757203689406,8.18,200.88,200.81,4.9]
[1757203689610,8.18,200.88,200.82,4.52646592]
[1757203689810,8.18,200.88,200.81,4.9]
[1757203690008,8.18,200.88,200.82,4.52646592]
[1757203690211,8.18,200.88,200.81,4.9]
[1757203690411,8.18,200.88,200.82,4.52646592]
[1757203690612,8.18,200.88,200.81,4.9]
[1757203690814,8.18,200.88,200.82,4.52650907]
[1757203691017,8.18,200.88,200.81,4.9]
[1757203691316,8.18,200.88,200.82,4.52650907]
[1757203691512,8.18,200.88,200.81,4.9]
[1757203691716,8.18,200.88,200.82,4.5265709]
[1757203691916,8.18,200.88,200.81,4.9]
[1757203692118,8.18,200.88,200.82,4.5265709]
[1757203692317,8.18,200.88,200.81,4.9]
[1757203692516,8.18,200.88,200.82,4.5266517]
[1757203692817,8.18,200.88,200.81,4.9]
[1757203693116,8.18,200.88,200.82,4.5266517]
[1757203693316,8.18,200.88,200.81,4.9]
[1757203693516,8.18,200.88,200.82,4.5267518]
[1757203693817,8.18,200.86,200.83,0.03747828]
[1757203694218,0.03140022,200.87,200.83,0.03747828]
[1757203694418,8.18,200.86,200.83,0.03747828]
[1757203694917,0.03140022,200.87,200.83,0.03747828]
[1757203695517,8.18,200.86,200.83,0.03747828]
[1757203695915,0.03140022,200.87,200.83,0.03747828]
[1757203696111,8.18,200.86,200.83,0.03747828]
[1757203696315,0.03140022,200.87,200.83,0.03747828]
[1757203696621,8.18,200.86,200.83,0.03747828]
[1757203697316,0.03140022,200.87,200.83,0.03747828]
[1757203697513,8.18,200.86,200.83,0.03747828]
[1757203697719,0.03140022,200.87,200.83,0.03747828]
[1757203698017,8.18,200.86,200.83,0.03747828]
[1757203699020,8.01,200.86,200.83,0.03747828]
[1757203699216,0.03140022,200.87,200.83,0.03747828]
[1757203699418,8.01,200.86,200.83,0.03747828]
[1757203699622,0.03140022,200.87,200.83,0.03747828]
[1757203699921,8.01,200.86,200.83,0.03747828]
[1757203700624,0.03140022,200.87,200.83,0.03747828]
[1757203700927,8.01,200.86,200.83,0.03747828]
[1757203701119,0.03140022,200.87,200.83,0.03747828]
[1757203703122,8.01,200.86,200.83,0.03747828]
[1757203703524,0.03140022,200.87,200.83,0.03747828]
[1757203703822,8.01,200.86,200.83,0.03747828]
[1757203704225,0.03140022,200.87,200.83,0.03747828]
[1757203704426,8.01,200.86,200.83,0.03747828]
[1757203705027,0.03140022,200.87,200.83,0.03747828]
[1757203705226,8.01,200.86,200.83,0.03747828]
[1757203705525,0.03140022,200.87,200.83,0.03747828]
[1757203705829,8.01,200.86,200.83,0.03747828]
[1757203706428,0.03140022,200.87,200.83,0.03747828]
[1757203706721,8.01,200.86,200.83,0.03747828]
[1757203706926,0.03140022,200.87,200.83,0.03747828]
[1757203707126,8.01,200.86,200.83,0.03747828]
[1757203707427,0.03140022,200.87,200.83,0.03747828]
[1757203707623,8.01,200.86,200.83,0.03747828]
[1757203707822,0.03140022,200.87,200.83,0.03747828]
[1757203708228,8.01,200.86,200.83,0.03747828]
[1757203708929,0.03140022,200.87,200.83,0.03747828]
[1757203709627,8.01,200.86,200.83,0.03747828]
[1757203709828,0.03140022,200.87,200.83,0.03747828]
[1757203710031,8.01,200.86,200.83,4.94747828]
[1757203710231,0.03140022,200.87,200.83,4.94747828]
[1757203711028,8.01,200.86,200.83,4.94747828]
[1757203711225,8.01,200.85,200.83,4.94747828]
[1757203713024,0.03140022,200.87,200.83,0.03747828]
[1757203713328,0.03140022,200.87,200.85,4.91]
[1757203713529,0.03140022,200.87,200.86,9.4465515]
[1757203716425,0.03140022,200.87,200.83,0.03747828]
[1757203716626,8.01,200.86,200.84,4.53478336]
[1757203716929,8.01,200.86,200.83,4.93747828]
[1757203717131,8.01,200.86,200.84,4.53486164]
[1757203717329,8.01,200.86,200.83,0.03747828]
[1757203717330,8.01,200.86,200.83,4.93747828]
[1757203717531,8.01,200.86,200.84,4.53492056]
[1757203717730,0.03140022,200.87,200.83,4.93747828]
[1757203718127,8.01,200.86,200.83,4.93747828]
[1757203718428,8.01,200.86,200.83,0.03747828]
[1757203718635,0.03140022,200.87,200.83,0.03747828]
[1757203718833,8.01,200.86,200.83,4.93747828]
[1757203719034,0.03140022,200.87,200.83,4.93747828]
[1757203719333,8.01,200.86,200.83,4.93747828]
[1757203719627,0.03140022,200.87,200.83,4.93747828]
[1757203719831,8.01,200.86,200.83,4.93747828]
[1757203720532,0.03140022,200.87,200.83,0.03747828]
[1757203721035,8.04140022,200.87,200.83,0.03747828]
[1757203721535,8.04140022,200.87,200.84,4.9]
[1757203724131,8.01,200.86,200.83,0.03747828]
[1757203724431,0.03140022,200.87,200.83,0.03747828]
[1757203724631,8.01,200.86,200.84,4.53573971]
[1757203724834,8.01,200.86,200.83,0.03747828]
[1757203725034,0.03140022,200.87,200.84,4.53562461]
[1757203725236,8.01,200.86,200.83,0.03747828]
[1757203725436,8.01,200.86,200.84,4.53562499]
[1757203725631,0.03140022,200.87,200.83,0.03747828]
[1757203725836,8.01,200.86,200.84,4.53570409]
[1757203726032,0.03140022,200.87,200.83,0.03747828]
[1757203726234,8.01,200.86,200.84,4.53570409]
[1757203726535,8.01,200.86,200.83,4.93747828]
[1757203726736,8.01,200.86,200.84,9.43578279]
[1757203726936,8.01,200.86,200.84,4.9]
[1757203729139,8.01,200.86,200.83,0.03747828]
[1757203729339,7.48,200.86,200.84,4.53594781]
[1757203729638,7.48,200.86,200.83,4.93747828]
[1757203729831,0.03140022,200.87,200.84,4.53603412]
[1757203730031,7.48,200.86,200.83,4.93747828]
[1757203730241,7.48,200.86,200.84,4.53603412]
[1757203730539,7.48,200.86,200.83,4.93747828]
[1757203730737,7.48,200.86,200.84,4.53607501]
[1757203730943,7.48,200.86,200.84,4.9]
[1757203731139,121.03140022,200.87,200.83,0.03747828]
[1757203731439,7.48,200.86,200.84,9.43607501]
[1757203731639,7.48,200.86,200.84,4.9]
[1757203733345,121.03140022,200.87,200.83,0.03747828]
[1757203733539,121.03140022,200.87,200.84,4.54210453]
[1757203733744,7.48,200.86,200.83,4.93747828]
[1757203733939,7.48,200.86,200.83,0.03747828]
[1757203734243,7.48,200.86,200.84,4.9]
[1757203735546,121.03140022,200.87,200.83,4.93747828]
[1757203736140,7.48,200.86,200.83,4.93747828]
[1757203736744,121.03140022,200.87,200.83,4.93747828]
[1757203737038,7.48,200.86,200.83,4.93747828]
[1757203737235,121.03140022,200.87,200.83,4.93747828]
[1757203737446,7.48,200.86,200.83,4.93747828]
[1757203737646,121.03140022,200.87,200.83,4.93747828]
[1757203737838,7.48,200.86,200.83,4.93747828]
[1757203738040,121.03140022,200.87,200.83,4.93747828]
[1757203738239,7.48,200.86,200.83,4.93747828]
[1757203738550,121.03140022,200.87,200.83,4.93747828]
[1757203739346,7.48,200.86,200.83,4.93747828]
[1757203739849,121.03140022,200.87,200.83,4.93747828]
[1757203740150,7.48,200.86,200.83,4.93747828]
[1757203740748,121.03140022,200.87,200.83,4.93747828]
[1757203741150,7.48,200.86,200.83,4.93747828]
[1757203741345,121.03140022,200.87,200.83,4.93747828]
[1757203741553,7.48,200.86,200.83,4.93747828]
[1757203742052,121.03140022,200.87,200.83,4.93747828]
[1757203742649,7.48,200.86,200.83,4.93747828]
[1757203743352,121.03140022,200.87,200.83,4.93747828]
[1757203743554,7.48,200.86,200.83,4.93747828]
[1757203744450,121.03140022,200.87,200.83,4.93747828]
[1757203744853,7.48,200.86,200.83,4.93747828]
[1757203745551,128.48,200.86,200.83,4.93747828]
[1757203745757,7.48,200.85,200.83,4.93747828]
[1757203748556,121.0,200.86,200.83,4.93747828]
[1757203748757,7.48,200.85,200.83,4.93747828]
[1757203749565,121.0,200.86,200.83,4.93747828]
[1757203749766,7.48,200.85,200.83,4.93747828]
[1757203750570,7.48,200.85,200.84,4.54178186]
[1757203753072,7.48,200.85,200.84,9.44178186]
[1757203753273,7.48,200.85,200.84,9.44170521]
[1757203753768,7.48,200.85,200.84,4.54170521]
[1757203757379,7.48,200.85,200.83,0.03747828]
[1757203757971,121.0,200.86,200.83,0.03747828]
[1757203758177,7.48,200.85,200.83,0.03747828]
[1757203759884,7.6,200.85,200.83,0.03747828]
[1757203760379,121.0,200.86,200.83,0.03747828]
[1757203760578,7.6,200.85,200.83,0.03747828]
[1757203760778,121.0,200.86,200.83,0.03747828]
[1757203761372,7.6,200.85,200.84,4.54504794]
[1757203772082,129.33468199,200.86,200.83,0.03747828]
[1757203772387,7.6,200.84,200.83,0.03747828]
[1757203772587,7.6,200.84,200.83,4.59164985]
[1757203782195,7.6,200.84,200.83,0.03747828]
[1757203782497,7.6,200.84,200.83,4.59099831]
[1757203793407,15.93468199,200.84,200.77,4.92]
[1757203793606,120.92,200.83,200.78,14.12909617]
[1757203793800,7.69,200.82,200.79,4.56734805]
[1757203794005,128.61,200.81,200.8,4.56734805]
[1757203812626,0.03558136,200.83,200.8,4.56734805]
[1757203812826,0.03558136,200.83,200.81,4.56220515]
[1757203813036,0.03558136,200.83,200.82,14.47659608]